Workbook

Sheet NSU
B1: Inka Ronkainen | E1: 3.11.1998 Sotkamo
B2: SUPERPESIS | E2: Runkosarja | I2: Kärkilyönnit (KL), pesänvälit | P2: Ylempi loppusarja | U2: Alempi loppusarja | AB2: Arvo-ottelut ja mitalit
B3: Vuosi | C3: Sija | D3: Seura | E3: OTT | F3: KUN | G3: LÖI | H3: TOI | I3: KL | J3: 0 > 1 | K3: 1 > 2 | L3: 2 > 3 | M3: 3 > k | N3: KL-% | P3: OTT | Q3: KUN | R3: LÖI | S3: TOI | T3: KL | U3: OTT | V3: KUN | W3: LÖI | X3: TOI | Y3: KL | Z3: IL | AA3: LL | AB3: Halli | AC3: K | AD3: H | AE3: P
B4: 2013 | D4: VuVe | F4: suomensarja
B5: 2014 | D5: VuVe | F5: suomensarja
B6: 2015 | D6: VuVe | F6: suomensarja
B7: 2015 | D7: KPK | F7: ykköspesis
B8: 2016 | C8: 9. | D8: KPK | E8: 22 | F8: 0 | G8: 1 | H8: 2 | I8: 39 | J8: 30 | K8: 4 | L8: 4 | M8: 1 | N8: 33.6 % | O8: 116
B9: 2017 | C9: 10. | D9: KPK | E9: 26 | F9: 0 | G9: 4 | H9: 6 | I9: 49 | J9: 24 | K9: 13 | L9: 8 | M9: 4 | N9: 38.9 % | O9: 126
B10: 2018 | C10: 9. | D10: Lipottaret | E10: 26 | F10: 0 | G10: 0 | H10: 20 | I10: 73 | J10: 53 | K10: 11 | L10: 9 | M10: 0 | N10: 48.3 % | O10: 151
B11: 2019 | C11: 8. | D11: KeKi | E11: 23 | F11: 2 | G11: 6 | H11: 27 | I11: 90 | J11: 15 | K11: 46 | L11: 21 | M11: 8 | N11: 55.9 % | O11: 161 | P11: 3 | Q11: 0 | R11: 0 | S11: 0 | T11: 7
B12: 2020 | C12: 7. | D12: KeKi | E12: 20 | F12: 2 | G12: 5 | H12: 29 | I12: 91 | J12: 16 | K12: 56 | L12: 12 | M12: 7 | N12: 61.5 % | O12: 148 | P12: 2 | Q12: 0 | R12: 0 | S12: 3 | T12: 11
B13: 2021 | C13: 4. | D13: Virkiä | E13: 24 | F13: 1 | G13: 1 | H13: 33 | I13: 88 | J13: 34 | K13: 45 | L13: 7 | M13: 2 | N13: 62.9 % | O13: 140 | P13: 10 | Q13: 1 | R13: 2 | S13: 4 | T13: 30 | Z13: 1
B14: 2022 | C14: 3. | D14: Virkiä | E14: 24 | F14: 0 | G14: 5 | H14: 16 | I14: 73 | J14: 23 | K14: 31 | L14: 14 | M14: 5 | N14: 62.4 % | O14: 117 | P14: 11 | Q14: 0 | R14: 1 | S14: 7 | T14: 31 | AE14: 1
B15: 2023 | C15: 3. | D15: Virkiä | E15: 8 | F15: 0 | G15: 1 | H15: 3 | I15: 14 | J15: 1 | K15: 3 | L15: 9 | M15: 1 | N15: 40.0 % | O15: 35 | AE15: 1
B16: 2024 | C16: 8. | D16: Mailattaret | E16: 21 | F16: 0 | G16: 2 | H16: 5 | I16: 53 | J16: 3 | K16: 23 | L16: 25 | M16: 2 | N16: 57.0 % | O16: 93 | P16: 6 | Q16: 0 | R16: 0 | S16: 1 | T16: 10
B17: Yhteensä | E17: =SUM(E4:E16) -> 194 | F17: 5 | G17: 25 | H17: 141 | I17: 570 | J17: 199 | K17: 232 | L17: 109 | M17: 30 | N17: =PRODUCT(I17/O17) -> 52.4 % | O17: =SUM(O7:O16) -> 1087 | P17: =SUM(P4:P16) -> 32 | Q17: 1 | R17: 3 | S17: 15 | T17: 89 | U17: 0 | V17: 0 | W17: 0 | X17: 0 | Y17: 0 | Z17: 1 | AA17: 0 | AB17: 0 | AC17: 0 | AD17: 0 | AE17: 2
B18: Pesispörssi | D18: =SUM(F17:H17)+((I17-F17-G17)/3)+(E17/3)+(Z17*25)+(AA17*25)+(AB17*10)+(AC17*25)+(AD17*20)+(AE17*15)-15 -> 455.7
B20: URA SUPERISSA | E20: OTT | F20: KUN | G20: LÖI | H20: TOI | I20: KL | K20: ka/L | L20: ka/T | M20: ka/KL | N20: K - % | P20: ENSIMMÄISET
B21: Runkosarja | E21: =PRODUCT(E17) -> 194 | F21: =PRODUCT(F17) -> 5 | G21: =PRODUCT(G17) -> 25 | H21: =PRODUCT(H17) -> 141 | I21: =PRODUCT(I17) -> 570 | K21: =PRODUCT((F21+G21)/E21) -> 0.15 | L21: =PRODUCT(H21/E21) -> 0.73 | M21: =PRODUCT(I21/E21) -> 2.94 | N21: =PRODUCT(N17) -> 52.4 % | O21: =PRODUCT(O17) -> 1087 | P21: Ottelu | R21: 11.05. 2016 KPK - KeKi 2-1 (5-1, 1-4, 0-0, 3-2) | AA21: 1. ottelu | AC21: 17 v 6 kk 8 pv
B22: Ylempi loppusarja | E22: =PRODUCT(P17) -> 32 | F22: =PRODUCT(Q17) -> 1 | G22: =PRODUCT(R17) -> 3 | H22: =PRODUCT(S17) -> 15 | I22: =PRODUCT(T17) -> 89 | K22: =PRODUCT((F22+G22)/E22) -> 0.13 | L22: =PRODUCT(H22/E22) -> 0.47 | M22: =PRODUCT(I22/E22) -> 2.78 | N22: =PRODUCT(I22/O22) -> 55.6 % | O22: 160 | P22: Lyöty | R22: 12.06. 2016 KPK - Kirittäret 0-2 (2-6, 2-9) | AA22: 9. ottelu | AC22: 17 v 7 kk 9 pv
B23: Alempi loppusarja | P23: Tuotu | R23: 12.07. 2016 KPK - ViPa 2-1 (5-6, 7-0, 1-1, 2-1) | AA23: 14. ottelu | AC23: 17 v 8 kk 9 pv
B24: KAIKKI | E24: =SUM(E21:E23) -> 226 | F24: =SUM(F21:F23) -> 6 | G24: =SUM(G21:G23) -> 28 | H24: =SUM(H21:H23) -> 156 | I24: =SUM(I21:I23) -> 659 | K24: =PRODUCT((F24+G24)/E24) -> 0.15 | L24: =PRODUCT(H24/E24) -> 0.69 | M24: =PRODUCT(I24/E24) -> 2.92 | N24: =PRODUCT(I24/O24) -> 52.8 % | O24: =SUM(O21:O23) -> 1247 | P24: Kunnari | R24: 18.05. 2019 KeKi - MyVe 1-0 (3-0, 3-3) | AA24: 77. ottelu | AC24: 20 v 6 kk 15 pv
B26: Seurat | D26: VuVe = Vuokatin Veto (1946), kasvattajaseura
D27: KPK = Kajaanin Pallokerho (1933)
D28: Lipottaret = Oulun Lipottaret (2014)
D29: KeKi = Kempeleen Kiri (1915)
D30: Virkiä = Lapuan Virkiä (1909)
D31: Mailattaret (2015)

Sheet Arvo-ottelut
B1: ITÄ - LÄNSI - KORTTI
B2: Inka Ronkainen | C2: 3.11.1998 Sotkamo
B3: NAISET | C3: Itä - Länsi, tulos | D3: Joukkue | E3: Seura | G3: V | H3: T | I3: H | J3: Up. | K3: Lj. | L3: Palk. | M3: O | N3: K | O3: L | P3: T | Q3: KL | R3: 1 | S3: 2 | T3: 3 | U3: k | V3: KL-% | W3: Pelinjohtaja | X3: Yleisöä
B4: 07.08. 2021 Pori | C4: 0-2 (1-4, 0-3) | D4: Länsi | E4: Virkiä | G4: 1 | K4: jok | M4: 1 | P4: 1 | Q4: 1/3 | R4: 1/1 | S4: 1/1 | T4: 1/1 | V4: 33.3 % | W4: Jarkko Pokela | X4: 3050
B5: Ikä ensimmäisessä ottelussa | C5: 22 v 9 kk 4 pv
B7: B-TYTÖT | C7: Itä - Länsi, tulos | D7: Joukkue | E7: Seura | G7: V | H7: T | I7: H | J7: Up. | K7: Lj. | L7: Palk. | M7: O | N7: K | O7: L | P7: T | Q7: KL | R7: 1 | S7: 2 | T7: 3 | U7: k | V7: KL-% | W7: Pelinjohtaja | X7: Yleisöä
B8: 02.07. 2016 Kouvola | C8: 2-1 (4-2, 9-10, 3-2) | D8: Itä | E8: KPK | G8: 1 | K8: jok | M8: 1 | Q8: 1/3 | R8: 1/3 | V8: 33.3 % | W8: Antti Vihtkari | X8: 1615
B9: 01.07. 2017 Imatra | C9: 1-2 (2-2, 2-2, 0-1) | D9: Itä | E9: KPK | I9: 1 | J9: 3k | K9: 7 | M9: 1 | P9: 1 | Q9: 2/3 | R9: 1/2 | S9: 1/1 | V9: 66.7 % | W9: Sarita Heikkinen | X9: 1348
B10: Yhteensä | G10: 1 | I10: 1 | M10: 2 | P10: 1 | Q10: 3/6 | R10: 2/5 | S10: 1/1 | V10: 50.0 %
